[Event "Titled Tuesday Blitz December 20 Early 2022"]
[White "Truequitos"]
[Black "sofaceindisguise"]
[WhiteElo "2536"]
[BlackElo "2741"]
[Result "0-1"]
[Round "02"]
[TimeControl "180+2"]
[Date "2022.12.20"]
[WhiteClock "0:00:04"]
[BlackClock "0:00:23"]

1. Nf3 {[%clk 0:03:00]}  d5 {[%clk 0:03:00]} 2. g3 {[%clk 0:03:00]}  Nd7 {[%clk 0:03:00]} 3. d4 {[%clk 0:02:58]}  Nb6 {[%clk 0:03:00]} 4. Bg2 {[%clk 0:02:58]}  Nf6 {[%clk 0:03:00]} 5. Ne5 {[%clk 0:02:57]}  Bf5 {[%clk 0:02:53]} 6. a4 {[%clk 0:02:55]}  a5 {[%clk 0:02:53]} 7. O-O {[%clk 0:02:55]}  e6 {[%clk 0:02:53]} 8. b3 {[%clk 0:02:50]}  Be7 {[%clk 0:02:51]} 9. Ba3 {[%clk 0:02:47]}  Bxa3 {[%clk 0:02:50]} 10. Nxa3 {[%clk 0:02:46]}  O-O {[%clk 0:02:50]} 11. c4 {[%clk 0:02:41]}  c6 {[%clk 0:02:50]} 12. Nb1 {[%clk 0:02:29]}  Nbd7 {[%clk 0:02:35]} 13. Nd3 {[%clk 0:02:24]}  Be4 {[%clk 0:02:33]} 14. f3 {[%clk 0:02:20]}  Bxd3 {[%clk 0:02:33]} 15. Qxd3 {[%clk 0:02:20]}  e5 {[%clk 0:02:31]} 16. Nc3 {[%clk 0:02:05]}  exd4 {[%clk 0:02:31]} 17. Qxd4 {[%clk 0:02:06]}  c5 {[%clk 0:02:29]} 18. Qh4 {[%clk 0:02:03]}  d4 {[%clk 0:02:29]} 19. Nb5 {[%clk 0:01:53]}  Ra6 {[%clk 0:02:20]} 20. f4 {[%clk 0:01:49]}  Re6 {[%clk 0:02:19]} 21. Rfe1 {[%clk 0:01:29]}  b6 {[%clk 0:02:15]} 22. e4 {[%clk 0:00:59]}  dxe3 {[%clk 0:02:11]} 23. Rad1 {[%clk 0:00:59]}  Qb8 {[%clk 0:01:45]} 24. Nc3 {[%clk 0:00:56]}  Rfe8 {[%clk 0:01:39]} 25. Nd5 {[%clk 0:00:54]}  Nxd5 {[%clk 0:01:38]} 26. Bxd5 {[%clk 0:00:54]}  R6e7 {[%clk 0:01:35]} 27. Rd3 {[%clk 0:00:34]}  Qc7 {[%clk 0:01:31]} 28. Qh5 {[%clk 0:00:28]}  Nf6 {[%clk 0:01:24]} 29. Qf3 {[%clk 0:00:28]}  e2 {[%clk 0:00:52]} 30. Rd2 {[%clk 0:00:24]}  Re3 {[%clk 0:00:52]} 31. Rdxe2 {[%clk 0:00:20]}  Rxe2 {[%clk 0:00:47]} 32. Rxe2 {[%clk 0:00:21]}  Rxe2 {[%clk 0:00:46]} 33. Qxe2 {[%clk 0:00:22]}  g6 {[%clk 0:00:42]} 34. Qe5 {[%clk 0:00:17]}  Qxe5 {[%clk 0:00:39]} 35. fxe5 {[%clk 0:00:18]}  Ne8 {[%clk 0:00:26]} 36. e6 {[%clk 0:00:17]}  fxe6 {[%clk 0:00:25]} 37. Bxe6+ {[%clk 0:00:18]}  Kg7 {[%clk 0:00:26]} 38. Kf2 {[%clk 0:00:18]}  Kf6 {[%clk 0:00:26]} 39. Bd7 {[%clk 0:00:18]}  Nd6 {[%clk 0:00:26]} 40. Kf3 {[%clk 0:00:18]}  Ke5 {[%clk 0:00:26]} 41. Ke3 {[%clk 0:00:16]}  Ne4 {[%clk 0:00:23]} 42. Bc6 {[%clk 0:00:14]}  Nd6 {[%clk 0:00:23]} 43. Ba8 {[%clk 0:00:13]}  Nf5+ {[%clk 0:00:23]} 44. Kd3 {[%clk 0:00:14]}  Nd4 {[%clk 0:00:24]} 45. Kc3 {[%clk 0:00:13]}  g5 {[%clk 0:00:24]} 46. Bd5 {[%clk 0:00:13]}  h5 {[%clk 0:00:24]} 47. Bg2 {[%clk 0:00:13]}  g4 {[%clk 0:00:24]} 48. Bd5 {[%clk 0:00:13]}  Nf5 {[%clk 0:00:20]} 49. Kd3 {[%clk 0:00:12]}  Nd4 {[%clk 0:00:19]} 50. Kc3 {[%clk 0:00:12]}  Kf5 {[%clk 0:00:19]} 51. Ba8 {[%clk 0:00:11]}  Kg5 {[%clk 0:00:19]} 52. Bb7 {[%clk 0:00:11]}  h4 {[%clk 0:00:20]} 53. gxh4+ {[%clk 0:00:09]}  Kxh4 {[%clk 0:00:21]} 54. Bc8 {[%clk 0:00:09]}  Nf3 {[%clk 0:00:21]} 55. Kd3 {[%clk 0:00:08]}  Nxh2 {[%clk 0:00:21]} 56. Ke4 {[%clk 0:00:08]}  g3 {[%clk 0:00:21]} 57. Ke3 {[%clk 0:00:07]}  Ng4+ {[%clk 0:00:20]} 58. Kf3 {[%clk 0:00:06]}  Ne5+ {[%clk 0:00:21]} 59. Kg2 {[%clk 0:00:06]}  Nc6 {[%clk 0:00:21]} 60. Bf5 {[%clk 0:00:05]}  Nd4 {[%clk 0:00:22]} 61. Be4 {[%clk 0:00:03]}  Nxb3 {[%clk 0:00:22]} 62. Bc6 {[%clk 0:00:04]}  Nd2 {[%clk 0:00:22]} 63. Bb5 {[%clk 0:00:04]}  Kg4 {[%clk 0:00:22]} 64. Ba6 {[%clk 0:00:04]}  Kf4 {[%clk 0:00:23]} 0-1


[Site "https://www.chess.com"]

[Event "Titled Tuesday Blitz December 20 Early 2022"]
[White "UnknownMagician"]
[Black "Nakamura, Hikaru"]
[BlackFideId "2016192"]
[WhiteElo "2635"]
[BlackElo "2775"]
[Result "0-1"]
[Round "02"]
[TimeControl "180+2"]
[Date "2022.12.20"]
[WhiteClock "0:00:04"]
[BlackClock "0:01:27"]

1. c4 {[%clk 0:02:58]}  e5 {[%clk 0:02:56]} 2. Nc3 {[%clk 0:02:57]}  Nf6 {[%clk 0:02:55]} 3. g3 {[%clk 0:02:57]}  Bc5 {[%clk 0:02:55]} 4. Bg2 {[%clk 0:02:55]}  O-O {[%clk 0:02:54]} 5. d3 {[%clk 0:02:48]}  d6 {[%clk 0:02:54]} 6. Nf3 {[%clk 0:02:48]}  h6 {[%clk 0:02:54]} 7. O-O {[%clk 0:02:48]}  a6 {[%clk 0:02:50]} 8. Rb1 {[%clk 0:02:46]}  Bg4 {[%clk 0:02:46]} 9. h3 {[%clk 0:02:45]}  Be6 {[%clk 0:02:45]} 10. b4 {[%clk 0:02:43]}  Ba7 {[%clk 0:02:45]} 11. e4 {[%clk 0:02:36]}  Nc6 {[%clk 0:02:39]} 12. Nd5 {[%clk 0:02:31]}  Nd7 {[%clk 0:02:39]} 13. Nh4 {[%clk 0:02:26]}  Nd4 {[%clk 0:02:36]} 14. Be3 {[%clk 0:02:24]}  c6 {[%clk 0:02:36]} 15. Nc3 {[%clk 0:02:23]}  b5 {[%clk 0:02:37]} 16. cxb5 {[%clk 0:02:04]}  axb5 {[%clk 0:02:36]} 17. a4 {[%clk 0:02:00]}  bxa4 {[%clk 0:02:33]} 18. Nxa4 {[%clk 0:02:01]}  d5 {[%clk 0:02:30]} 19. exd5 {[%clk 0:01:44]}  cxd5 {[%clk 0:02:28]} 20. Nc3 {[%clk 0:01:45]}  Nf6 {[%clk 0:02:25]} 21. Ne2 {[%clk 0:01:26]}  Nb5 {[%clk 0:02:12]} 22. Bxa7 {[%clk 0:01:25]}  Rxa7 {[%clk 0:02:12]} 23. Nf3 {[%clk 0:01:18]}  Nd7 {[%clk 0:02:07]} 24. Qd2 {[%clk 0:01:10]}  Qb6 {[%clk 0:01:59]} 25. Nc3 {[%clk 0:01:05]}  Nxc3 {[%clk 0:01:58]} 26. Qxc3 {[%clk 0:01:06]}  d4 {[%clk 0:01:58]} 27. Qd2 {[%clk 0:01:05]}  Bd5 {[%clk 0:01:55]} 28. Rfe1 {[%clk 0:00:59]}  Qb7 {[%clk 0:01:48]} 29. Nh4 {[%clk 0:00:58]}  Bxg2 {[%clk 0:01:46]} 30. Nxg2 {[%clk 0:00:59]}  Rb8 {[%clk 0:01:43]} 31. Nh4 {[%clk 0:00:52]}  Qd5 {[%clk 0:01:42]} 32. Nf5 {[%clk 0:00:50]}  Nf8 {[%clk 0:01:40]} 33. Qe2 {[%clk 0:00:36]}  f6 {[%clk 0:01:31]} 34. Qg4 {[%clk 0:00:34]}  Kh7 {[%clk 0:01:30]} 35. h4 {[%clk 0:00:18]}  g6 {[%clk 0:01:26]} 36. h5 {[%clk 0:00:04]}  gxf5 {[%clk 0:01:26]} 37. Qxf5+ {[%clk 0:00:05]}  Kg7 {[%clk 0:01:27]} 38. Re4 {[%clk 0:00:05]}  Qe6 {[%clk 0:01:27]} 39. Rg4+ {[%clk 0:00:05]}  Kh8 {[%clk 0:01:27]} 40. Qf3 {[%clk 0:00:04]}  f5 {[%clk 0:01:27]} 41. Rh4 {[%clk 0:00:04]}  Nh7 {[%clk 0:01:28]} 42. Re1 {[%clk 0:00:03]}  Ng5 {[%clk 0:01:28]} 43. Qe2 {[%clk 0:00:04]}  e4 {[%clk 0:01:28]} 44. Kg2 {[%clk 0:00:04]}  Qd5 {[%clk 0:01:27]} 45. Kh2 {[%clk 0:00:04]}  Nf3+ {[%clk 0:01:27]} 0-1


[Site "https://www.chess.com"]

[Event "Titled Tuesday Blitz December 20 Early 2022"]
[White "Vesper, Horst"]
[Black "AttractiveChess"]
[WhiteFideId "24677159"]
[WhiteElo "2028"]
[BlackElo "2784"]
[Result "0-1"]
[Round "02"]
[TimeControl "180+2"]
[Date "2022.12.20"]
[WhiteClock "0:00:01"]
[BlackClock "0:00:25"]

1. e4 {[%clk 0:03:00]}  e5 {[%clk 0:02:56]} 2. Nf3 {[%clk 0:03:00]}  Nc6 {[%clk 0:02:57]} 3. Bb5 {[%clk 0:03:00]}  a6 {[%clk 0:02:57]} 4. Ba4 {[%clk 0:03:00]}  Nf6 {[%clk 0:02:25]} 5. O-O {[%clk 0:02:59]}  Be7 {[%clk 0:02:25]} 6. Re1 {[%clk 0:02:59]}  b5 {[%clk 0:02:25]} 7. Bb3 {[%clk 0:03:00]}  O-O {[%clk 0:02:25]} 8. a4 {[%clk 0:03:00]}  Bb7 {[%clk 0:02:23]} 9. d3 {[%clk 0:02:54]}  d6 {[%clk 0:02:22]} 10. Nbd2 {[%clk 0:02:50]}  Nb8 {[%clk 0:02:22]} 11. Nf1 {[%clk 0:02:49]}  Nbd7 {[%clk 0:02:22]} 12. c3 {[%clk 0:02:47]}  Nc5 {[%clk 0:02:22]} 13. Bc2 {[%clk 0:02:46]}  Re8 {[%clk 0:02:23]} 14. a5 {[%clk 0:02:42]}  Bf8 {[%clk 0:02:22]} 15. b4 {[%clk 0:02:37]}  Ncd7 {[%clk 0:02:22]} 16. Ng3 {[%clk 0:02:32]}  c5 {[%clk 0:02:22]} 17. Nf5 {[%clk 0:02:20]}  d5 {[%clk 0:02:06]} 18. Bd2 {[%clk 0:02:17]}  c4 {[%clk 0:02:06]} 19. dxc4 {[%clk 0:01:59]}  dxc4 {[%clk 0:02:06]} 20. Qe2 {[%clk 0:01:55]}  Qc7 {[%clk 0:02:03]} 21. h3 {[%clk 0:01:51]}  h6 {[%clk 0:02:03]} 22. g4 {[%clk 0:01:49]}  Rad8 {[%clk 0:01:48]} 23. Nh2 {[%clk 0:01:37]}  Re6 {[%clk 0:01:30]} 24. Nf1 {[%clk 0:01:35]}  Nh7 {[%clk 0:01:28]} 25. N1g3 {[%clk 0:01:29]}  Ng5 {[%clk 0:01:26]} 26. h4 {[%clk 0:01:29]}  Nh3+ {[%clk 0:01:26]} 27. Kf1 {[%clk 0:01:14]}  Nf4 {[%clk 0:01:27]} 28. Qf3 {[%clk 0:01:15]}  g6 {[%clk 0:01:23]} 29. Ne3 {[%clk 0:01:12]}  Nf6 {[%clk 0:01:15]} 30. Rad1 {[%clk 0:01:10]}  Red6 {[%clk 0:01:10]} 31. g5 {[%clk 0:01:05]}  hxg5 {[%clk 0:01:06]} 32. hxg5 {[%clk 0:01:05]}  Nh7 {[%clk 0:01:06]} 33. Nd5 {[%clk 0:00:59]}  Nxd5 {[%clk 0:00:54]} 34. exd5 {[%clk 0:00:59]}  Bxd5 {[%clk 0:00:55]} 35. Be4 {[%clk 0:00:49]}  Be6 {[%clk 0:00:50]} 36. Be3 {[%clk 0:00:39]}  Be7 {[%clk 0:00:43]} 37. Rxd6 {[%clk 0:00:20]}  Qxd6 {[%clk 0:00:44]} 38. Qg2 {[%clk 0:00:20]}  Bxg5 {[%clk 0:00:40]} 39. Bxg5 {[%clk 0:00:16]}  Nxg5 {[%clk 0:00:40]} 40. Nf5 {[%clk 0:00:15]}  Qd2 {[%clk 0:00:37]} 41. Re3 {[%clk 0:00:09]}  Qc1+ {[%clk 0:00:32]} 42. Re1 {[%clk 0:00:10]}  Qf4 {[%clk 0:00:33]} 43. Ne7+ {[%clk 0:00:01]}  Kf8 {[%clk 0:00:32]} 44. Nc6 {[%clk 0:00:01]}  Bh3 {[%clk 0:00:28]} 45. Nxd8 {[%clk 0:00:01]}  Nxe4 {[%clk 0:00:26]} 46. Rxe4 {[%clk 0:00:01]}  Bxg2+ {[%clk 0:00:25]} 0-1


[Site "https://www.chess.com"]

[Event "Titled Tuesday Blitz December 20 Early 2022"]
[White "VincentKeymer"]
[Black "Mone, Ved"]
[BlackFideId "25666290"]
[WhiteElo "2980"]
[BlackElo "1254"]
[Result "1-0"]
[Round "02"]
[TimeControl "180+2"]
[Date "2022.12.20"]
[WhiteClock "0:00:18"]
[BlackClock "0:00:20"]

1. a3 {[%clk 0:03:00]}  a6 {[%clk 0:02:57]} 2. Nf3 {[%clk 0:02:59]}  Nf6 {[%clk 0:02:57]} 3. d4 {[%clk 0:02:55]}  b5 {[%clk 0:02:57]} 4. Bg5 {[%clk 0:02:50]}  Ne4 {[%clk 0:02:57]} 5. Bh4 {[%clk 0:02:47]}  Bb7 {[%clk 0:02:57]} 6. e3 {[%clk 0:02:48]}  d6 {[%clk 0:02:56]} 7. Bd3 {[%clk 0:02:48]}  Nd7 {[%clk 0:02:56]} 8. O-O {[%clk 0:02:48]}  Ndf6 {[%clk 0:02:54]} 9. c3 {[%clk 0:02:47]}  e6 {[%clk 0:02:50]} 10. a4 {[%clk 0:02:48]}  bxa4 {[%clk 0:02:34]} 11. Qxa4+ {[%clk 0:02:44]}  Qd7 {[%clk 0:02:34]} 12. Qb3 {[%clk 0:02:38]}  c5 {[%clk 0:02:22]} 13. Nbd2 {[%clk 0:02:25]}  Nxd2 {[%clk 0:01:53]} 14. Nxd2 {[%clk 0:02:26]}  Be7 {[%clk 0:01:53]} 15. Nc4 {[%clk 0:02:00]}  O-O {[%clk 0:01:52]} 16. Na5 {[%clk 0:01:37]}  Bd5 {[%clk 0:01:43]} 17. c4 {[%clk 0:01:35]}  Rfb8 {[%clk 0:01:43]} 18. Qc2 {[%clk 0:01:33]}  Bb7 {[%clk 0:01:34]} 19. Nxb7 {[%clk 0:01:31]}  Qxb7 {[%clk 0:01:25]} 20. Bxf6 {[%clk 0:01:24]}  Bxf6 {[%clk 0:01:26]} 21. Be4 {[%clk 0:00:54]}  d5 {[%clk 0:01:25]} 22. cxd5 {[%clk 0:00:55]}  exd5 {[%clk 0:01:25]} 23. Bxh7+ {[%clk 0:00:55]}  Kh8 {[%clk 0:01:26]} 24. Qf5 {[%clk 0:00:56]}  cxd4 {[%clk 0:01:11]} 25. Qh5 {[%clk 0:00:52]}  dxe3 {[%clk 0:01:01]} 26. fxe3 {[%clk 0:00:34]}  Qxb2 {[%clk 0:00:46]} 27. Bg6+ {[%clk 0:00:23]}  Kg8 {[%clk 0:00:45]} 28. Bxf7+ {[%clk 0:00:24]}  Kf8 {[%clk 0:00:46]} 29. Bxd5 {[%clk 0:00:22]}  Ra7 {[%clk 0:00:43]} 30. Ra4 {[%clk 0:00:19]}  Rd7 {[%clk 0:00:30]} 31. Re4 {[%clk 0:00:18]}  Rxd5 {[%clk 0:00:26]} 32. Qxd5 {[%clk 0:00:19]}  Rd8 {[%clk 0:00:20]} 33. Qxd8+ {[%clk 0:00:18]} 1-0


[Site "https://www.chess.com"]

[Event "Titled Tuesday Blitz December 20 Early 2022"]
[White "Volkov, Nikolay Nik."]
[Black "Beca, Rodrigo Martins"]
[WhiteFideId "4176626"]
[BlackFideId "1954490"]
[WhiteElo "2123"]
[BlackElo "2976"]
[Result "0-1"]
[Round "02"]
[TimeControl "180+2"]
[Date "2022.12.20"]
[WhiteClock "0:00:02"]
[BlackClock "0:01:37"]

1. Nf3 {[%clk 0:02:59]}  c5 {[%clk 0:02:58]} 2. c4 {[%clk 0:02:59]}  Nc6 {[%clk 0:02:56]} 3. Nc3 {[%clk 0:02:59]}  g6 {[%clk 0:02:56]} 4. e3 {[%clk 0:02:56]}  Bg7 {[%clk 0:02:56]} 5. d4 {[%clk 0:02:56]}  d6 {[%clk 0:02:56]} 6. Be2 {[%clk 0:02:46]}  Nf6 {[%clk 0:02:50]} 7. O-O {[%clk 0:02:39]}  O-O {[%clk 0:02:49]} 8. d5 {[%clk 0:02:37]}  Na5 {[%clk 0:02:49]} 9. e4 {[%clk 0:02:09]}  e5 {[%clk 0:02:47]} 10. Rb1 {[%clk 0:01:57]}  b6 {[%clk 0:02:47]} 11. b3 {[%clk 0:01:57]}  h6 {[%clk 0:02:46]} 12. Ne1 {[%clk 0:01:42]}  Qe7 {[%clk 0:02:39]} 13. Nd3 {[%clk 0:01:29]}  Nd7 {[%clk 0:02:38]} 14. a3 {[%clk 0:01:20]}  f5 {[%clk 0:02:37]} 15. Bd2 {[%clk 0:00:50]}  Nf6 {[%clk 0:02:23]} 16. f3 {[%clk 0:00:49]}  f4 {[%clk 0:02:22]} 17. Nf2 {[%clk 0:00:50]}  g5 {[%clk 0:02:20]} 18. b4 {[%clk 0:00:51]}  Nb7 {[%clk 0:02:19]} 19. g4 {[%clk 0:00:43]}  h5 {[%clk 0:02:05]} 20. h3 {[%clk 0:00:43]}  Bd7 {[%clk 0:02:05]} 21. Kg2 {[%clk 0:00:39]}  Nd8 {[%clk 0:02:05]} 22. Rg1 {[%clk 0:00:34]}  Nf7 {[%clk 0:02:04]} 23. Kf1 {[%clk 0:00:33]}  hxg4 {[%clk 0:02:00]} 24. fxg4 {[%clk 0:00:16]}  Rac8 {[%clk 0:01:55]} 25. Bf3 {[%clk 0:00:16]}  Nh8 {[%clk 0:01:54]} 26. bxc5 {[%clk 0:00:11]}  Rxc5 {[%clk 0:01:52]} 27. Qb3 {[%clk 0:00:09]}  Rfc8 {[%clk 0:01:50]} 28. Be2 {[%clk 0:00:07]}  Ng6 {[%clk 0:01:50]} 29. Na4 {[%clk 0:00:07]}  R5c7 {[%clk 0:01:48]} 30. Nd1 {[%clk 0:00:03]}  Nxe4 {[%clk 0:01:45]} 31. Be1 {[%clk 0:00:02]}  Nc5 {[%clk 0:01:40]} 32. Nxc5 {[%clk 0:00:02]}  Rxc5 {[%clk 0:01:41]} 33. Bf2 {[%clk 0:00:01]}  e4 {[%clk 0:01:41]} 34. Nc3 {[%clk 0:00:01]}  f3 {[%clk 0:01:39]} 35. Be1 {[%clk 0:00:01]}  fxe2+ {[%clk 0:01:37]} 36. Kxe2 {[%clk 0:00:02]}  Rxc4 {[%clk 0:01:37]} 0-1


[Site "https://www.chess.com"]

[Event "Titled Tuesday Blitz December 20 Early 2022"]
[White "WhiteKnight2612"]
[Black "Alphafischer2019"]
[WhiteElo "2753"]
[BlackElo "2543"]
[Result "1-0"]
[Round "02"]
[TimeControl "180+2"]
[Date "2022.12.20"]
[WhiteClock "0:00:34"]
[BlackClock "0:00:09"]

1. e4 {[%clk 0:02:42]}  c5 {[%clk 0:02:58]} 2. d4 {[%clk 0:02:32]}  cxd4 {[%clk 0:02:56]} 3. c3 {[%clk 0:02:28]}  Nf6 {[%clk 0:02:55]} 4. e5 {[%clk 0:02:07]}  Nd5 {[%clk 0:02:54]} 5. cxd4 {[%clk 0:02:08]}  Nc6 {[%clk 0:02:54]} 6. Nc3 {[%clk 0:02:07]}  Nxc3 {[%clk 0:02:47]} 7. bxc3 {[%clk 0:02:08]}  d6 {[%clk 0:02:48]} 8. exd6 {[%clk 0:02:08]}  Qxd6 {[%clk 0:02:49]} 9. Nf3 {[%clk 0:02:08]}  g6 {[%clk 0:02:48]} 10. h4 {[%clk 0:02:03]}  h5 {[%clk 0:02:37]} 11. Bc4 {[%clk 0:01:56]}  Bg7 {[%clk 0:02:24]} 12. O-O {[%clk 0:01:45]}  O-O {[%clk 0:02:19]} 13. Bg5 {[%clk 0:01:38]}  Bg4 {[%clk 0:02:17]} 14. Re1 {[%clk 0:01:35]}  Rae8 {[%clk 0:01:45]} 15. Qd3 {[%clk 0:01:07]}  Bxf3 {[%clk 0:00:41]} 16. Qxf3 {[%clk 0:01:00]}  e5 {[%clk 0:00:40]} 17. d5 {[%clk 0:00:55]}  Na5 {[%clk 0:00:39]} 18. Bb5 {[%clk 0:00:55]}  Rc8 {[%clk 0:00:38]} 19. Rad1 {[%clk 0:00:55]}  f5 {[%clk 0:00:29]} 20. Qe3 {[%clk 0:00:49]}  b6 {[%clk 0:00:24]} 21. Bf1 {[%clk 0:00:47]}  Rc5 {[%clk 0:00:20]} 22. Qd3 {[%clk 0:00:38]}  Rfc8 {[%clk 0:00:18]} 23. Qa6 {[%clk 0:00:39]}  R8c7 {[%clk 0:00:16]} 24. Rc1 {[%clk 0:00:37]}  e4 {[%clk 0:00:15]} 25. c4 {[%clk 0:00:37]}  Be5 {[%clk 0:00:15]} 26. f3 {[%clk 0:00:36]}  exf3 {[%clk 0:00:14]} 27. gxf3 {[%clk 0:00:36]}  Bd4+ {[%clk 0:00:14]} 28. Kg2 {[%clk 0:00:36]}  Be5 {[%clk 0:00:14]} 29. Rc2 {[%clk 0:00:35]}  Kf7 {[%clk 0:00:13]} 30. Rce2 {[%clk 0:00:35]}  Bf6 {[%clk 0:00:14]} 31. Re6 {[%clk 0:00:35]}  Qd8 {[%clk 0:00:10]} 32. Rxf6+ {[%clk 0:00:35]}  Qxf6 {[%clk 0:00:11]} 33. Bxf6 {[%clk 0:00:35]}  Kxf6 {[%clk 0:00:12]} 34. Re6+ {[%clk 0:00:35]}  Kg7 {[%clk 0:00:11]} 35. Re8 {[%clk 0:00:35]}  Kf7 {[%clk 0:00:09]} 36. Ra8 {[%clk 0:00:35]}  Nxc4 {[%clk 0:00:09]} 37. Bxc4 {[%clk 0:00:34]}  Rxc4 {[%clk 0:00:09]} 38. Rxa7 {[%clk 0:00:34]}  Rc2+ {[%clk 0:00:10]} 39. Kg3 {[%clk 0:00:35]}  Kf6 {[%clk 0:00:09]} 40. Rxc7 {[%clk 0:00:35]}  Ke5 {[%clk 0:00:08]} 41. Rxc2 {[%clk 0:00:34]}  f4+ {[%clk 0:00:09]} 42. Kg2 {[%clk 0:00:34]} 1-0


[Site "https://www.chess.com"]

[Event "Titled Tuesday Blitz December 20 Early 2022"]
[White "Xiong, Jeffery"]
[Black "TERMINATOR_PC"]
[WhiteFideId "2047640"]
[WhiteElo "2692"]
[BlackElo "2620"]
[Result "1-0"]
[Round "02"]
[TimeControl "180+2"]
[Date "2022.12.20"]
[WhiteClock "0:01:30"]
[BlackClock "0:00:07"]

1. e4 {[%clk 0:03:00]}  e5 {[%clk 0:02:45]} 2. Nf3 {[%clk 0:03:01]}  Nc6 {[%clk 0:02:45]} 3. Nc3 {[%clk 0:03:01]}  Nf6 {[%clk 0:02:43]} 4. d4 {[%clk 0:03:01]}  exd4 {[%clk 0:02:43]} 5. Nxd4 {[%clk 0:03:02]}  Bb4 {[%clk 0:02:40]} 6. Nxc6 {[%clk 0:03:03]}  bxc6 {[%clk 0:02:41]} 7. Bd3 {[%clk 0:03:03]}  O-O {[%clk 0:02:35]} 8. O-O {[%clk 0:03:03]}  d5 {[%clk 0:02:34]} 9. exd5 {[%clk 0:03:04]}  cxd5 {[%clk 0:02:34]} 10. h3 {[%clk 0:03:05]}  c6 {[%clk 0:02:34]} 11. Qf3 {[%clk 0:03:05]}  Bd6 {[%clk 0:02:25]} 12. Bf4 {[%clk 0:03:05]}  Rb8 {[%clk 0:02:25]} 13. b3 {[%clk 0:03:05]}  Be6 {[%clk 0:02:19]} 14. Rfe1 {[%clk 0:03:03]}  Re8 {[%clk 0:02:17]} 15. Rad1 {[%clk 0:03:03]}  Bxf4 {[%clk 0:01:48]} 16. Qxf4 {[%clk 0:03:04]}  Qa5 {[%clk 0:01:48]} 17. Na4 {[%clk 0:03:02]}  c5 {[%clk 0:01:45]} 18. Re5 {[%clk 0:02:38]}  c4 {[%clk 0:01:39]} 19. Bxc4 {[%clk 0:02:34]}  Qb4 {[%clk 0:00:56]} 20. a3 {[%clk 0:02:33]}  Qxa3 {[%clk 0:00:54]} 21. Bd3 {[%clk 0:02:34]}  Qd6 {[%clk 0:00:45]} 22. Rde1 {[%clk 0:02:26]}  Qc6 {[%clk 0:00:11]} 23. Qd4 {[%clk 0:02:25]}  a5 {[%clk 0:00:10]} 24. Rg5 {[%clk 0:02:25]}  Bd7 {[%clk 0:00:09]} 25. Ra1 {[%clk 0:01:56]}  Qd6 {[%clk 0:00:09]} 26. Qc5 {[%clk 0:01:31]}  Qf4 {[%clk 0:00:07]} 27. Rg3 {[%clk 0:01:32]}  Bc6 {[%clk 0:00:07]} 28. Qxc6 {[%clk 0:01:30]} 1-0


[Site "https://www.chess.com"]

[Event "Titled Tuesday Blitz December 20 Early 2022"]
[White "Yildiz, Ayse Emek"]
[Black "MrChampion_Coach"]
[WhiteFideId "6303528"]
[WhiteElo "1702"]
[BlackElo "2580"]
[Result "1-0"]
[Round "02"]
[TimeControl "180+2"]
[Date "2022.12.20"]
[WhiteClock "0:00:13"]
[BlackClock "0:00:06"]

1. e4 {[%clk 0:03:00]}  e5 {[%clk 0:02:59]} 2. Nf3 {[%clk 0:03:00]}  Nc6 {[%clk 0:03:00]} 3. Nc3 {[%clk 0:03:01]}  Nf6 {[%clk 0:02:59]} 4. a4 {[%clk 0:03:01]}  Bb4 {[%clk 0:02:36]} 5. Bd3 {[%clk 0:03:00]}  O-O {[%clk 0:02:32]} 6. O-O {[%clk 0:02:58]}  Re8 {[%clk 0:02:30]} 7. Re1 {[%clk 0:02:56]}  d6 {[%clk 0:02:24]} 8. Nd5 {[%clk 0:02:56]}  Bc5 {[%clk 0:02:20]} 9. c3 {[%clk 0:02:56]}  a6 {[%clk 0:02:20]} 10. Bc2 {[%clk 0:02:54]}  Ba7 {[%clk 0:02:20]} 11. d4 {[%clk 0:02:39]}  h6 {[%clk 0:02:19]} 12. Be3 {[%clk 0:01:59]}  Bg4 {[%clk 0:02:05]} 13. Qd3 {[%clk 0:01:05]}  Nxd5 {[%clk 0:02:01]} 14. exd5 {[%clk 0:01:05]}  e4 {[%clk 0:02:02]} 15. Qf1 {[%clk 0:01:03]}  exf3 {[%clk 0:01:59]} 16. dxc6 {[%clk 0:01:02]}  bxc6 {[%clk 0:01:55]} 17. Qd3 {[%clk 0:01:01]}  g6 {[%clk 0:01:49]} 18. Bxh6 {[%clk 0:00:57]}  Bf5 {[%clk 0:01:42]} 19. Rxe8+ {[%clk 0:00:48]}  Qxe8 {[%clk 0:01:43]} 20. Qd2 {[%clk 0:00:48]}  Bxc2 {[%clk 0:01:37]} 21. Qxc2 {[%clk 0:00:49]}  fxg2 {[%clk 0:01:32]} 22. Qd3 {[%clk 0:00:46]}  a5 {[%clk 0:01:25]} 23. Kxg2 {[%clk 0:00:43]}  Qe6 {[%clk 0:01:20]} 24. Qf3 {[%clk 0:00:38]}  Qd5 {[%clk 0:01:14]} 25. Re1 {[%clk 0:00:34]}  Rb8 {[%clk 0:00:41]} 26. Bc1 {[%clk 0:00:33]}  Kf8 {[%clk 0:00:28]} 27. Re4 {[%clk 0:00:32]}  f5 {[%clk 0:00:20]} 28. Re2 {[%clk 0:00:32]}  Re8 {[%clk 0:00:19]} 29. Rxe8+ {[%clk 0:00:28]}  Kxe8 {[%clk 0:00:19]} 30. h4 {[%clk 0:00:26]}  Kf7 {[%clk 0:00:19]} 31. Be3 {[%clk 0:00:23]}  Ke6 {[%clk 0:00:17]} 32. Kg3 {[%clk 0:00:22]}  Qxf3+ {[%clk 0:00:16]} 33. Kxf3 {[%clk 0:00:22]}  Bb6 {[%clk 0:00:10]} 34. c4 {[%clk 0:00:22]}  c5 {[%clk 0:00:08]} 35. d5+ {[%clk 0:00:21]}  Kf6 {[%clk 0:00:08]} 36. Bg5+ {[%clk 0:00:20]}  Kf7 {[%clk 0:00:08]} 37. Kf4 {[%clk 0:00:20]}  Kg7 {[%clk 0:00:06]} 38. Bd8 {[%clk 0:00:21]}  Kh6 {[%clk 0:00:06]} 39. Be7 {[%clk 0:00:20]}  Kh5 {[%clk 0:00:07]} 40. Kg3 {[%clk 0:00:20]}  Kh6 {[%clk 0:00:07]} 41. Bf8+ {[%clk 0:00:19]}  Kh5 {[%clk 0:00:07]} 42. Bg7 {[%clk 0:00:18]}  Ba7 {[%clk 0:00:07]} 43. Bf6 {[%clk 0:00:18]}  Bb6 {[%clk 0:00:08]} 44. Bd8 {[%clk 0:00:18]}  Kh6 {[%clk 0:00:08]} 45. Kf3 {[%clk 0:00:18]}  Kh5 {[%clk 0:00:09]} 46. Kf4 {[%clk 0:00:18]}  Kh6 {[%clk 0:00:09]} 47. Kf3 {[%clk 0:00:17]}  Kh5 {[%clk 0:00:09]} 48. Bg5 {[%clk 0:00:15]}  Ba7 {[%clk 0:00:09]} 49. Kg3 {[%clk 0:00:14]}  Bb6 {[%clk 0:00:08]} 50. Bd2 {[%clk 0:00:15]}  c6 {[%clk 0:00:06]} 51. dxc6 {[%clk 0:00:14]}  Bc7 {[%clk 0:00:07]} 52. Bf4 {[%clk 0:00:14]}  Bb8 {[%clk 0:00:06]} 53. Bg5 {[%clk 0:00:14]}  d5+ {[%clk 0:00:06]} 54. Bf4 {[%clk 0:00:13]} 1-0


[Site "https://www.chess.com"]